fUSD/lending_fUSD_20240222
["ID","MTS","AMOUNT","RATE_DAILY","PERIOD"]
[314899907,1708625526042,-500.0,0.00033835,4]
[314899908,1708625526052,-668.92,0.00033835,4]
[314899909,1708625526062,-746.18,0.00033835,4]
[314899910,1708625526071,-655.97,0.00033835,4]
[314899911,1708625526082,-500.0,0.00033835,4]
[314899912,1708625526091,-500.0,0.00033835,4]
[314899913,1708625526101,-944.62,0.00033835,4]
[314899914,1708625526111,-500.0,0.00033835,4]
[314899915,1708625526121,-500.0,0.00033835,4]
[314899916,1708625526130,-500.0,0.00033835,4]
[314899917,1708625526140,-500.0,0.00033835,4]
[314899918,1708625526150,-804.18,0.00033835,4]
[314899919,1708625526159,-535.66,0.00033835,4]
[314899920,1708625526169,-936.27,0.00033835,4]
[314899921,1708625526178,-500.0,0.00033835,4]
[314899922,1708625526188,-573.6,0.00033835,4]
[314899923,1708625526197,-156.950667,0.00033835,7]
[314899924,1708625526208,-500.0,0.00033835,4]
[314899925,1708625526217,-573.73,0.00033835,4]
[314899926,1708625526228,-156.950659,0.00033835,7]
[314899927,1708625526238,-906.98,0.00033835,4]
[314899928,1708625526248,-625.48,0.00033835,4]
[314899929,1708625526258,-619.25,0.00033835,4]
[314899930,1708625526268,-802.24,0.00033835,4]
[314899931,1708625526278,-553.85,0.00033835,4]
[314899932,1708625526288,-951.64,0.00033835,4]
[314899933,1708625526298,-500.0,0.00033835,4]
[314899934,1708625526308,-694.67,0.00033835,4]
[314899935,1708625526318,-500.0,0.00033835,4]
[314899936,1708625526327,-516.38417934,0.00033835,4]
[314899937,1708625526338,-991.06,0.00033835,4]
[314899938,1708625526348,-634.19392887,0.00033835,4]
[314899939,1708625526358,-676.95,0.00033835,4]
[314899940,1708625526368,-500.0,0.00033835,4]
[314899941,1708625526377,-764.63,0.00033835,4]
[314899942,1708625526387,-500.0,0.00033835,4]
[314899943,1708625526398,-508.78,0.00033835,4]
[314899944,1708625526408,-500.0,0.00033835,4]
[314899945,1708625526418,-500.0,0.00033835,2]
[314899946,1708625526429,-802.5,0.00033835,4]
[314899947,1708625526438,-664.95,0.00033835,4]
[314899948,1708625526448,-692.13,0.00033835,4]
[314899949,1708625526458,-632.57,0.00033835,4]
[314899950,1708625526468,-509.92,0.00033835,4]
[314899951,1708625526478,-500.0,0.00033835,4]
[314899952,1708625526488,-500.0,0.00033835,4]
[314899953,1708625526497,-607.02,0.00033835,4]
[314899954,1708625526507,-792.22,0.00033835,4]
[314899955,1708625526517,-500.0,0.00033835,4]
[314899956,1708625526527,-1057.84,0.00033835,4]
[314899957,1708625526537,-500.0,0.00033835,4]
[314899958,1708625526547,-967.9,0.00033835,4]
[314899959,1708625526557,-1015.71,0.00033835,4]
[314899960,1708625526567,-500.0,0.00033835,4]
[314899961,1708625526577,-1057.91,0.00033835,4]
[314899962,1708625526587,-500.0,0.00033835,4]
[314899963,1708625526596,-500.0,0.00033835,4]
[314899964,1708625526606,-1562.84,0.00033835,4]
[314899965,1708625526616,-500.0,0.00033835,2]
[314899966,1708625526625,-908.7,0.00033835,4]
[314899967,1708625526635,-574.22,0.00033835,4]
[314899968,1708625526645,-1195.95,0.00033835,4]
[314899969,1708625526655,-500.0,0.00033835,4]
[314899970,1708625526665,-500.0,0.00033835,4]
[314899971,1708625526674,-151.0,0.00033835,7]
[314899972,1708625526683,-711.8,0.00033835,4]
[314899973,1708625526693,-643.93,0.00033835,4]
[314899974,1708625526702,-500.0,0.00033835,4]
[314899975,1708625526713,-690.36,0.00033835,4]
[314899976,1708625526722,-500.0,0.00033835,4]
[314899977,1708625526732,-582.2,0.00033835,4]
[314899978,1708625526741,-623.27,0.00033835,4]
[314899979,1708625526751,-808.11,0.00033835,4]
[314899980,1708625526761,-500.0,0.00033835,4]
[314899981,1708625526770,-955.15,0.00033835,4]
[314899982,1708625526779,-500.0,0.00033835,4]
[314899983,1708625526789,-151.0,0.00033835,7]
[314899984,1708625526799,-500.0,0.00033835,2]
[314899985,1708625526808,-520.41,0.00033835,4]
[314899986,1708625526818,-500.0,0.00033835,4]
[314899987,1708625526827,-642.76,0.00033835,4]
[314899988,1708625526837,-500.0,0.00033835,4]
[314899989,1708625526847,-500.0,0.00033835,4]
[314899990,1708625526857,-500.0,0.00033835,4]
[314899991,1708625526867,-814.72,0.00033835,4]
[314899992,1708625526878,-763.81,0.00033835,4]
[314899993,1708625526890,-500.0,0.00033835,4]
[314899994,1708625526900,-500.0,0.00033835,4]
[314899995,1708625526910,-920.28,0.00033835,4]
[314899996,1708625526920,-595.79,0.00033835,4]
[314899997,1708625526930,-500.0,0.00033835,4]
[314899998,1708625526939,-151.0,0.00033835,7]
[314899999,1708625526949,-616.74,0.00033835,4]
[314900000,1708625526961,-704.13,0.00033835,4]
[314900001,1708625526971,-693.29,0.00033835,4]
[314900002,1708625526981,-970.8,0.00033835,4]
[314900003,1708625526990,-523.23,0.00033835,4]
[314900004,1708625527001,-552.1,0.00033835,4]
[314900005,1708625527011,-569.97,0.00033835,4]
[314900006,1708625527020,-500.0,0.00033835,4]
[314900007,1708625527030,-546.34,0.00033835,4]
[314900008,1708625527040,-500.0,0.00033835,4]
[314900009,1708625527050,-272.392206,0.00033835,7]
[314900010,1708625527061,-597.14,0.00033835,4]
[314900011,1708625527070,-272.392212,0.00033835,7]
[314900012,1708625527080,-936.39,0.00033835,4]
[314900013,1708625527089,-500.0,0.00033835,4]
[314900014,1708625527099,-500.0,0.00033835,4]
[314900015,1708625527109,-500.0,0.00033835,4]
[314900016,1708625527118,-1000.0,0.00033835,7]
[314900017,1708625527130,-1322.67,0.00033835,4]
[314900018,1708625527139,-513.58,0.00033835,4]
[314900019,1708625527157,-500.0,0.00033835,4]
[314900020,1708625527167,-500.0,0.00033835,4]
[314900021,1708625527177,-652.66,0.00033835,4]
[314900022,1708625527186,-500.0,0.00033835,4]
[314900023,1708625527196,-500.0,0.00033835,4]
[314900024,1708625527205,-905.48,0.00033835,4]
[314900025,1708625527215,-500.0,0.00033835,4]
[314900026,1708625527224,-500.0,0.00033835,4]
[314900027,1708625527233,-902.91,0.00033835,4]
[314900028,1708625527243,-500.0,0.00033835,4]
[314900029,1708625527252,-577.69,0.00033835,4]
[314900030,1708625527262,-500.0,0.00033835,4]
[314900031,1708625527271,-1566.96,0.00033835,4]
[314900032,1708625527281,-500.0,0.00033835,4]
[314900033,1708625527290,-885.89,0.00033835,4]
[314900034,1708625527299,-567.92,0.00033835,4]
[314900035,1708625527308,-642.58,0.00033835,4]
[314900036,1708625527318,-851.67,0.00033835,4]
[314900037,1708625527327,-500.0,0.00033835,2]
[314900038,1708625527337,-500.0,0.00033835,4]
[314900039,1708625527346,-572.75,0.00033835,4]
[314900040,1708625527356,-583.46,0.00033835,4]
[314900041,1708625527365,-1131.89,0.00033835,4]
[314900042,1708625527375,-500.0,0.00033835,4]
[314900043,1708625527385,-500.0,0.00033835,4]
[314900044,1708625527395,-511.8015236,0.00033835,4]
[314900045,1708625527405,-568.65,0.00033835,4]
[314900046,1708625527417,-500.0,0.00033835,4]
[314900047,1708625527427,-500.0,0.00033835,4]
[314900048,1708625527436,-1313.43,0.00033835,4]
[314900049,1708625527534,-3828.9,0.00033835,4]
[314900050,1708625527544,-1312.47,0.00033835,4]
[314900051,1708625527553,-500.0,0.00033835,4]
[314900052,1708625527563,-514.6895057,0.00033835,4]
[314900053,1708625527572,-637.56,0.00033835,4]
[314900054,1708625527582,-534.21857247,0.00033835,4]
[314900055,1708625527592,-500.0,0.00033835,4]
[314900056,1708625527602,-771.01,0.00033835,4]
[314900057,1708625527611,-670.32,0.00033835,4]
[314900058,1708625527620,-905.48,0.00033835,4]
[314900059,1708625527629,-587.38,0.00033835,4]
[314900060,1708625527639,-500.0,0.00033835,4]
[314900061,1708625527648,-500.0,0.00033835,4]
[314900062,1708625527657,-500.0,0.00033835,4]
[314900063,1708625527666,-500.0,0.00033835,4]
[314900064,1708625527675,-500.0,0.00033835,4]
[314900065,1708625527685,-500.0,0.00033835,4]
[314900066,1708625527694,-500.0,0.00033835,4]
[314900067,1708625527703,-159.745135,0.00033835,7]
[314900068,1708625527713,-500.0,0.00033835,4]
[314900069,1708625527722,-500.0,0.00033835,4]
[314900070,1708625527732,-1115.25,0.00033835,4]
[314900071,1708625527741,-500.0,0.00033835,4]
[314900072,1708625527751,-159.745144,0.00033835,7]
[314900073,1708625527760,-617.27,0.00033835,4]
[314900074,1708625527769,-500.0,0.00033835,4]
[314900075,1708625527778,-1239.94,0.00033835,4]
[314900076,1708625527788,-920.63,0.00033835,4]
[314900077,1708625527797,-799.98,0.00033835,4]
[314900078,1708625527806,-1030.29,0.00033835,4]
[314900079,1708625527815,-500.0,0.00033835,4]
[314900080,1708625527824,-500.0,0.00033835,4]
[314900081,1708625527834,-209.966881,0.00033835,7]
[314900082,1708625527843,-209.966888,0.00033835,7]
[314900083,1708625527853,-728.76,0.00033835,4]
[314900084,1708625527862,-741.55,0.00033835,4]
[314900085,1708625527872,-500.0,0.00033835,4]
[314900086,1708625527884,-617.56,0.00033835,4]
[314900087,1708625527894,-664.22,0.00033835,4]
[314900088,1708625527903,-582.0,0.00033835,4]
[314900089,1708625527912,-500.0,0.00033835,4]
[314900090,1708625527922,-541.78,0.00033835,4]
[314900091,1708625527931,-764.35,0.00033835,4]
[314900092,1708625527941,-521.25867656,0.00033835,4]
[314900093,1708625527950,-500.0,0.00033835,4]
[314900094,1708625527961,-1242.24,0.00033835,4]
[314900095,1708625527971,-872.206723,0.00033835,7]
[314900096,1708625527980,-1041.1,0.00033835,4]
[314900097,1708625527989,-500.0,0.00033835,4]
[314900098,1708625527999,-1494.6,0.00033835,4]
[314900099,1708625528008,-500.0,0.00033835,4]
[314900100,1708625528018,-872.206718,0.00033835,7]
[314900101,1708625528027,-500.0,0.00033835,4]
[314900102,1708625528037,-983.44,0.00033835,4]
[314900103,1708625528047,-500.0,0.00033835,4]
[314900104,1708625528057,-273.001206,0.00033835,7]
[314900105,1708625528066,-871.52,0.00033835,4]
[314900106,1708625528076,-273.001197,0.00033835,7]
[314900107,1708625528085,-500.0,0.00033835,4]
[314900108,1708625528095,-937.84,0.00033835,4]
[314900109,1708625528105,-500.0,0.00033835,4]
[314900110,1708625528114,-940.94,0.00033835,4]
[314900111,1708625528123,-500.0,0.00033835,4]
[314900112,1708625528132,-500.0,0.00033835,4]
[314900113,1708625528142,-500.0,0.00033835,4]
[314900114,1708625528151,-900.68,0.00033835,4]
[314900115,1708625528160,-1267.73,0.00033835,4]
[314900116,1708625528170,-988.42,0.00033835,4]
[314900117,1708625528179,-598.66,0.00033835,4]
[314900118,1708625528188,-1407.88,0.00033835,4]
[314900119,1708625528197,-500.0,0.00033835,4]
[314900120,1708625528206,-500.0,0.00033835,4]
[314900121,1708625528216,-1015.51,0.00033835,4]
[314900122,1708625528225,-500.0,0.00033835,4]
[314900123,1708625528236,-500.0,0.00033835,4]
[314900124,1708625528245,-824.67,0.00033835,4]
[314900125,1708625528255,-1044.83,0.00033835,4]
[314900126,1708625528264,-625.15,0.00033835,4]
[314900127,1708625528273,-848.25,0.00033835,4]
[314900128,1708625528282,-715.27,0.00033835,4]
[314900129,1708625528291,-500.0,0.00033835,4]
[314900130,1708625528300,-1782.080711,0.00033835,7]
[314900131,1708625528309,-500.0,0.00033835,4]
[314900132,1708625528319,-500.0,0.00033835,4]
[314900133,1708625528328,-1782.080719,0.00033835,7]
[314900134,1708625528337,-979.83,0.00033835,4]
[314900135,1708625528347,-500.0,0.00033835,4]
[314900136,1708625528357,-240.853509,0.00033835,7]
[314900137,1708625528366,-1292.8,0.00033835,4]
[314900138,1708625528377,-240.853505,0.00033835,7]
[314900139,1708625528386,-579.59,0.00033835,4]
[314900140,1708625528397,-651.21,0.00033835,4]
[314900141,1708625528407,-709.91,0.00033835,4]
[314900142,1708625528417,-1259.45,0.00033835,4]
[314900143,1708625528426,-150.0,0.00033835,4]
[314900144,1708625528436,-151.0,0.00033835,7]
[314900145,1708625528446,-500.0,0.00033835,4]
[314900146,1708625528455,-695.7,0.00033835,4]
[314900147,1708625528465,-972.69,0.00033835,4]
[314900148,1708625528474,-521.447789,0.00033835,7]
[314900149,1708625528484,-500.0,0.00033835,4]
[314900150,1708625528493,-500.0,0.00033835,4]
[314900151,1708625528502,-1106.66,0.00033835,4]
[314900152,1708625528512,-521.447784,0.00033835,7]
[314900153,1708625528521,-1263.76,0.00033835,4]
[314900154,1708625528531,-500.0,0.00033835,4]
[314900155,1708625528540,-1595.37,0.00033835,4]
[314900156,1708625528550,-500.0,0.00033835,4]
[314900157,1708625528560,-535.25,0.00033835,4]
[314900158,1708625528570,-1321.09,0.00033835,4]
[314900159,1708625528579,-500.0,0.00033835,4]
[314900160,1708625528588,-841.52,0.00033835,4]
[314900161,1708625528598,-162.346877,0.00033835,2]
[314900162,1708625528607,-931.24,0.00033835,4]
[314900163,1708625528616,-593.4,0.00033835,4]
[314900164,1708625528626,-500.0,0.00033835,4]
[314900165,1708625528636,-1083.33,0.00033835,4]
[314900166,1708625528646,-1312.31,0.00033835,4]
[314900167,1708625528655,-1322.97,0.00033835,4]
[314900168,1708625528665,-6861.46,0.00033835,4]
[314900169,1708625528674,-162.346876,0.00033835,2]
[314900170,1708625528684,-430.79192737,0.00033835,4]
[314900171,1708625528693,-7508.74,0.00033835,4]
[314900172,1708625528703,-500.0,0.00033835,4]
[314900173,1708625528713,-500.0,0.00033835,4]
[314900174,1708625528723,-2188.57,0.00033835,4]
[314900175,1708625528733,-640.5,0.00033835,4]
[314900176,1708625528743,-1556.17,0.00033835,2]
[314900177,1708625528754,-1521.19,0.00033835,4]
[314900178,1708625528764,-308.051986,0.00033835,7]
[314900179,1708625528774,-1367.32,0.00033835,4]
[314900180,1708625528783,-579.67,0.00033835,4]
[314900181,1708625528793,-500.0,0.00033835,4]
[314900182,1708625528803,-151.0,0.00033835,7]
[314900183,1708625528812,-500.0,0.00033835,4]
[314900184,1708625528821,-308.051996,0.00033835,7]
[314900185,1708625528831,-500.0,0.00033835,4]
[314900186,1708625528841,-3289.02,0.00033835,4]
[314900187,1708625528850,-1435.75,0.00033835,4]
[314900188,1708625528860,-7764.94,0.00033835,4]
[314900189,1708625528869,-670.88,0.00033835,4]
[314900190,1708625528880,-1463.74,0.00033835,4]
[314900191,1708625528891,-905.05,0.00033835,4]
[314900192,1708625528900,-500.0,0.00033835,4]
[314900193,1708625528910,-500.0,0.00033835,4]
[314900194,1708625528919,-500.0,0.00033835,4]
[314900195,1708625528930,-2618.09,0.00033835,4]
[314900196,1708625528940,-500.0,0.00033835,4]
[314900197,1708625528949,-230.005431,0.00033835,7]
[314900198,1708625528959,-1754.26,0.00033835,4]
[314900199,1708625528969,-571.38,0.00033835,4]
[314900200,1708625528979,-230.00543,0.00033835,7]
[314900201,1708625528989,-1224.57,0.00033835,4]
[314900202,1708625528998,-1412.23,0.00033835,4]
[314900203,1708625529008,-1295.05,0.00033835,4]
[314900204,1708625529017,-2025.9,0.00033835,4]
[314900205,1708625529028,-500.0,0.00033835,4]
[314900206,1708625529038,-734.04,0.00033835,4]
[314900207,1708625529048,-16810.08,0.00033835,4]
[314900208,1708625529057,-500.0,0.00033835,4]
[314900209,1708625529067,-3953.01,0.00033835,4]
[314900210,1708625529077,-1357.88,0.00033835,4]
[314900211,1708625529087,-500.0,0.00033835,4]
[314900212,1708625529096,-523.91,0.00033835,4]
[314900213,1708625529106,-500.0,0.00033835,4]
[314900214,1708625529116,-500.0,0.00033835,4]
[314900215,1708625529126,-500.0,0.00033835,4]
[314900216,1708625529136,-156.888403,0.00033835,7]
[314900217,1708625529146,-1319.7,0.00033835,4]
[314900218,1708625529156,-1306.91,0.00033835,4]
[314900219,1708625529166,-2921.05,0.00033835,4]
[314900220,1708625529176,-4012.02,0.00033835,4]
[314900221,1708625529185,-3520.12,0.00033835,4]
[314900222,1708625529196,-1203.69,0.00033835,4]
[314900223,1708625529206,-156.888398,0.00033835,7]
[314900224,1708625529215,-7422.46,0.00033835,4]
[314900225,1708625529225,-2325.63,0.00033835,4]
[314900226,1708625529235,-595.22,0.00033835,4]
[314900227,1708625529244,-500.0,0.00033835,4]
[314900228,1708625529254,-500.0,0.00033835,4]
[314900229,1708625529263,-578.71,0.00033835,4]
[314900230,1708625529273,-896.84,0.00033835,4]
[314900231,1708625529283,-500.0,0.00033835,4]
[314900232,1708625529292,-802.17,0.00033835,4]
[314900233,1708625529302,-500.0,0.00033835,4]
[314900234,1708625529312,-579.72,0.00033835,4]
[314900235,1708625529321,-2641.23,0.00033835,4]
[314900236,1708625529331,-999.86,0.00033835,4]
[314900237,1708625529341,-3363.68,0.00033835,4]
[314900238,1708625529351,-2799.21,0.00033835,4]
[314900239,1708625529361,-500.0,0.00033835,4]
[314900240,1708625529371,-500.0,0.00033835,4]
[314900241,1708625529381,-500.0,0.00033835,4]
[314900242,1708625529391,-522.87,0.00033835,4]
[314900243,1708625529404,-879.41,0.00033835,4]
[314900244,1708625529414,-2871.255775,0.00033835,7]
[314900245,1708625529424,-922.6,0.00033835,4]
[314900246,1708625529435,-7827.29,0.00033835,4]
[314900247,1708625529445,-1225.83,0.00033835,4]
[314900248,1708625529455,-708.41,0.00033835,4]
[314900249,1708625529466,-2871.25578,0.00033835,7]
[314900250,1708625529477,-4523.83,0.00033835,4]
[314900251,1708625529487,-1375.3,0.00033835,4]
[314900252,1708625529497,-4862.62,0.00033835,4]
[314900253,1708625529506,-735.21,0.00033835,4]
[314900254,1708625529516,-757.98,0.00033835,4]
[314900255,1708625529526,-346.61,0.00033835,4]
[314900256,1708625529535,-500.0,0.00033835,4]
[314900257,1708625529546,-3270.53,0.00033835,4]
[314900258,1708625529556,-2130.22,0.00033835,4]
[314900259,1708625529566,-876.68,0.00033835,4]
[314900260,1708625529575,-3006.31,0.00033835,4]
[314900261,1708625529587,-181.894009,0.00033835,7]
[314900262,1708625529598,-358.319661,0.00033835,7]
[314900263,1708625529609,-1542.31,0.00033835,4]
[314900264,1708625529619,-5087.25,0.00033835,4]
[314900265,1708625529630,-869.35,0.00033835,4]
[314900266,1708625529640,-500.0,0.00033835,4]
[314900267,1708625529651,-500.0,0.00033835,4]
[314900268,1708625529661,-1701.19,0.00033835,4]
[314900269,1708625529670,-358.319659,0.00033835,7]
[314900270,1708625529680,-1144.38,0.00033835,4]
[314900271,1708625529690,-10191.48,0.00033835,4]
[314900272,1708625529700,-14297.7,0.00033835,4]
[314900273,1708625529711,-870.84,0.00033835,4]
[314900274,1708625529721,-1739.37,0.00033835,4]
[314900275,1708625529730,-151.0,0.00033835,7]
[314900276,1708625529740,-500.0,0.00033835,4]
[314900277,1708625529750,-1219.49,0.00033835,4]
[314900278,1708625529759,-500.0,0.00033835,4]
[314900279,1708625529769,-500.0,0.00033835,4]
[314900280,1708625529779,-662.36,0.00033835,4]
[314900281,1708625529789,-5320.7,0.00033835,4]
[314900282,1708625529799,-1389.1,0.00033835,4]
[314900283,1708625529810,-500.0,0.00033835,4]
[314900284,1708625529820,-1178.0,0.00033835,4]
[314900285,1708625529830,-4535.27,0.00033835,4]
[314900286,1708625529840,-1510.56,0.00033835,4]
[314900287,1708625529850,-320.80186801,0.00033835,4]
[314900288,1708625529859,-151.0,0.00033835,7]
[314900289,1708625529869,-574.08,0.00033835,4]
[314900290,1708625529881,-913.43,0.00033835,4]
[314900291,1708625529894,-957.57,0.00033835,4]
[314900292,1708625529904,-1132.71,0.00033835,4]
[314900293,1708625529913,-1614.812565,0.00033835,7]
[314900294,1708625529923,-182.999342,0.00033835,7]
[314900295,1708625529933,-1840.14,0.00033835,4]
[314900296,1708625529943,-182.999342,0.00033835,7]
[314900297,1708625529953,-1614.812556,0.00033835,7]
[314900298,1708625529964,-500.0,0.00033835,4]
[314900299,1708625529973,-500.0,0.00033835,4]
[314900300,1708625529983,-1105.16,0.00033835,4]
[314900301,1708625529993,-8688.16,0.00033835,4]
[314900302,1708625530003,-856.33,0.00033835,4]
[314900303,1708625530013,-1035.38,0.00033835,4]
[314900304,1708625530023,-500.0,0.00033835,4]
[314900305,1708625530033,-597.54,0.00033835,4]
[314900306,1708625530043,-1031.07,0.00033835,4]
[314900307,1708625530053,-500.0,0.00033835,4]
[314900308,1708625530063,-151.0,0.00033835,7]
[314900309,1708625530073,-607.73,0.00033835,4]
[314900310,1708625530083,-4152.62,0.00033835,4]
[314900311,1708625530093,-4573.59,0.00033835,4]
[314900312,1708625530103,-5220.29,0.00033835,4]
[314900313,1708625530114,-1750.52,0.00033835,4]
[314900314,1708625530123,-500.0,0.00033835,4]
[314900315,1708625530133,-543.8,0.00033835,4]
[314900316,1708625530143,-740.42,0.00033835,4]
[314900317,1708625530153,-579.71,0.00033835,4]
[314900318,1708625530163,-27929.76,0.00033835,4]
[314900319,1708625530173,-500.0,0.00033835,4]
[314900320,1708625530183,-2617.91,0.00033835,4]
[314900321,1708625530193,-163.954301,0.00033835,7]
[314900322,1708625530202,-769.4,0.00033835,4]
[314900323,1708625530212,-500.0,0.00033835,4]
[314900324,1708625530222,-163.954306,0.00033835,7]
[314900325,1708625530232,-500.0,0.00033835,4]
[314900326,1708625530242,-3104.43,0.00033835,4]
[314900327,1708625530251,-2557.13,0.00033835,4]
[314900328,1708625530261,-151.0,0.00033835,2]
[314900329,1708625530270,-763.62,0.00033835,4]
[314900330,1708625530280,-31733.49,0.00033835,4]
[314900331,1708625530290,-635.4,0.00033835,4]
[314900332,1708625530300,-1402.56,0.00033835,4]
[314900333,1708625530311,-500.0,0.00033835,4]
[314900334,1708625530321,-10076.31,0.00033835,4]
[314900335,1708625530333,-719.16,0.00033835,4]
[314900336,1708625530342,-500.0,0.00033835,4]
[314900337,1708625530352,-549.71,0.00033835,4]
[314900338,1708625530362,-815.24,0.00033835,4]
[314900339,1708625530372,-540.22,0.00033835,4]
[314900340,1708625530382,-10365.29,0.00033835,4]
[314900341,1708625530391,-1908.5,0.00033835,4]
[314900342,1708625530403,-500.0,0.00033835,4]
[314900343,1708625530413,-1930.81,0.00033835,4]
[314900344,1708625530423,-4645.8,0.00033835,4]
[314900345,1708625530433,-1831.86,0.00033835,4]
[314900346,1708625530443,-1019.93,0.00033835,4]
[314900347,1708625530453,-500.0,0.00033835,4]
[314900348,1708625530464,-831.39,0.00033835,4]
[314900349,1708625530473,-1113.04,0.00033835,4]
[314900350,1708625530483,-2272.34,0.00033835,4]
[314900351,1708625530493,-19048.88,0.00033835,4]
[314900352,1708625530504,-703.63,0.00033835,4]
[314900353,1708625530513,-899.16,0.00033835,4]
[314900354,1708625530524,-4986.223576,0.00033835,7]
[314900355,1708625530535,-612.06,0.00033835,4]
[314900356,1708625530545,-1790.32,0.00033835,4]
[314900357,1708625530555,-3342.93,0.00033835,4]
[314900358,1708625530565,-500.0,0.00033835,4]
[314900359,1708625530575,-6652.12,0.00033835,4]
[314900360,1708625530585,-4986.22358,0.00033835,7]
[314900361,1708625530595,-1083.4,0.00033835,4]
[314900362,1708625530604,-316.339277,0.00033835,7]
[314900363,1708625530614,-3448.92,0.00033835,4]
[314900364,1708625530624,-500.0,0.00033835,4]
[314900365,1708625530635,-500.0,0.00033835,4]
[314900366,1708625530645,-2397.11,0.00033835,4]
[314900367,1708625530655,-566.02,0.00033835,4]
[314900368,1708625530665,-316.339269,0.00033835,7]
[314900369,1708625530674,-588.46,0.00033835,4]
[314900370,1708625530684,-668.81,0.00033835,4]
[314900371,1708625530694,-504.65,0.00033835,4]
[314900372,1708625530704,-890.14,0.00033835,4]
[314900373,1708625530715,-1569.54,0.00033835,4]
[314900374,1708625530724,-2839.46,0.00033835,4]
[314900375,1708625530734,-151.0,0.00033835,7]
[314900376,1708625530744,-500.0,0.00033835,4]
[314900377,1708625530754,-500.0,0.00033835,4]
[314900378,1708625530764,-1599.27,0.00033835,4]
[314900379,1708625530774,-12262.15,0.00033835,4]
[314900380,1708625530784,-500.0,0.00033835,4]
[314900381,1708625530794,-603.26,0.00033835,4]
[314900382,1708625530804,-684.48,0.00033835,4]
[314900383,1708625530814,-4428.36,0.00033835,4]
[314900384,1708625530824,-500.0,0.00033835,4]
[314900385,1708625530834,-2710.14,0.00033835,4]
[314900386,1708625530844,-11511.86,0.00033835,4]
[314900387,1708625530854,-13857.62,0.00033835,4]
[314900388,1708625530864,-1092.92,0.00033835,4]
[314900389,1708625530874,-500.0,0.00033835,4]
[314900390,1708625530887,-1594.69,0.00033835,4]
[314900391,1708625530897,-500.0,0.00033835,4]
[314900392,1708625530906,-935.58,0.00033835,4]
[314900393,1708625530917,-543.61,0.00033835,4]
[314900394,1708625530927,-787.78,0.00033835,4]
[314900395,1708625530937,-500.0,0.00033835,4]
[314900396,1708625530947,-12927.16,0.00033835,4]
[314900397,1708625530957,-500.0,0.00033835,4]
[314900398,1708625530968,-952.32,0.00033835,4]
[314900399,1708625530978,-500.0,0.00033835,4]
[314900400,1708625530987,-15657.06,0.00033835,4]
[314900401,1708625530997,-1397.23,0.00033835,4]
[314900402,1708625531007,-734.09,0.00033835,4]
[314900403,1708625531017,-500.0,0.00033835,4]
[314900404,1708625531028,-500.0,0.00033835,4]
[314900405,1708625531038,-500.0,0.00033835,4]
[314900406,1708625531047,-638.64,0.00033835,4]